[Event "Early-Titled-Tuesday-Blitz-September-26-2023"]
[Site "Chess.com"]
[Date "2023.09.26"]
[Round "6"]
[White "Ermito2020"]
[Black "imdvb6307"]
[Result "0-1"]
[WhiteElo "2616"]
[BlackElo "2474"]
[TimeControl "180+1"]
[EndTime "9:09:23 PDT"]
[Termination "imdvb6307 won by resignation"]

1. e4 {[%clk 0:02:57.7]} 1... Nc6 {[%clk 0:02:57]} 2. Nf3 {[%clk 0:02:55.8]}
2... d6 {[%clk 0:02:57.2]} 3. d4 {[%clk 0:02:55.1]} 3... Nf6 {[%clk 0:02:57.4]}
4. Nc3 {[%clk 0:02:53.8]} 4... e5 {[%clk 0:02:57.2]} 5. Bb5 {[%clk 0:02:47.2]}
5... Bd7 {[%clk 0:02:57.2]} 6. O-O {[%clk 0:02:45.7]} 6... Be7 {[%clk
0:02:57.1]} 7. Re1 {[%clk 0:02:45.6]} 7... exd4 {[%clk 0:02:57]} 8. Nxd4 {[%clk
0:02:44.8]} 8... Nxd4 {[%clk 0:02:49.4]} 9. Qxd4 {[%clk 0:02:45.7]} 9... Bxb5
{[%clk 0:02:48.9]} 10. Nxb5 {[%clk 0:02:46.1]} 10... O-O {[%clk 0:02:48.8]} 11.
Qc3 {[%clk 0:02:46]} 11... Ne8 {[%clk 0:01:50.4]} 12. Bf4 {[%clk 0:02:34.1]}
12... a6 {[%clk 0:01:46.1]} 13. Nd4 {[%clk 0:02:33.1]} 13... Bf6 {[%clk
0:01:46]} 14. e5 {[%clk 0:02:33.4]} 14... dxe5 {[%clk 0:01:45.1]} 15. Bxe5
{[%clk 0:02:34.3]} 15... g6 {[%clk 0:01:35.5]} 16. Qg3 {[%clk 0:02:24.7]} 16...
Bxe5 {[%clk 0:01:34.9]} 17. Qxe5 {[%clk 0:02:25.4]} 17... Qd6 {[%clk 0:01:29.2]}
18. c3 {[%clk 0:02:23.9]} 18... Qxe5 {[%clk 0:01:22.8]} 19. Rxe5 {[%clk
0:02:24.8]} 19... Nd6 {[%clk 0:01:23.2]} 20. Re7 {[%clk 0:02:22.7]} 20... Rac8
{[%clk 0:01:22.9]} 21. Rae1 {[%clk 0:01:58.3]} 21... Rfe8 {[%clk 0:01:21.4]} 22.
f3 {[%clk 0:01:52.2]} 22... Kf8 {[%clk 0:01:15.3]} 23. R7e2 {[%clk 0:01:46.7]}
23... Rxe2 {[%clk 0:01:06.3]} 24. Rxe2 {[%clk 0:01:47.6]} 24... c5 {[%clk
0:00:59.7]} 25. Nb3 {[%clk 0:01:45.7]} 25... b6 {[%clk 0:00:59.4]} 26. Kf2
{[%clk 0:01:44.3]} 26... Nc4 {[%clk 0:00:59.2]} 27. Nc1 {[%clk 0:01:43.7]} 27...
Rd8 {[%clk 0:00:57.8]} 28. b3 {[%clk 0:01:42.3]} 28... Na3 {[%clk 0:00:53.4]}
29. Ke1 {[%clk 0:01:32]} 29... Nb5 {[%clk 0:00:40.1]} 30. c4 {[%clk 0:01:20.8]}
30... Nd4 {[%clk 0:00:36.6]} 31. Rd2 {[%clk 0:01:18.8]} 31... Re8+ {[%clk
0:00:22.4]} 32. Kf2 {[%clk 0:01:17.2]} 32... Re6 {[%clk 0:00:21.7]} 33. b4
{[%clk 0:01:14.3]} 33... Ke7 {[%clk 0:00:20.3]} 34. bxc5 {[%clk 0:01:11.9]}
34... bxc5 {[%clk 0:00:20.4]} 35. Nb3 {[%clk 0:01:09.3]} 35... Nxb3 {[%clk
0:00:19.8]} 36. axb3 {[%clk 0:01:10.1]} 36... Rb6 {[%clk 0:00:19.6]} 37. Rd3
{[%clk 0:01:10.2]} 37... a5 {[%clk 0:00:19.5]} 38. Ke3 {[%clk 0:01:08.6]} 38...
Rb4 {[%clk 0:00:18.8]} 39. Ke4 {[%clk 0:00:51.1]} 39... a4 {[%clk 0:00:18.9]}
40. Kd5 {[%clk 0:00:51.2]} 40... axb3 {[%clk 0:00:19]} 41. Rd1 {[%clk
0:00:48.9]} 41... b2 {[%clk 0:00:18.6]} 42. Rb1 {[%clk 0:00:49]} 42... Rb3
{[%clk 0:00:17.5]} 43. Kxc5 {[%clk 0:00:48.9]} 43... Kd7 {[%clk 0:00:17.8]} 44.
Kd5 {[%clk 0:00:46.2]} 44... Rd3+ {[%clk 0:00:17.3]} 45. Ke4 {[%clk 0:00:46.2]}
45... Rd2 {[%clk 0:00:17.6]} 46. g4 {[%clk 0:00:42.5]} 46... f6 {[%clk
0:00:17.1]} 47. h4 {[%clk 0:00:41.6]} 47... Kd6 {[%clk 0:00:16.6]} 48. Ke3
{[%clk 0:00:41.3]} 48... Rh2 {[%clk 0:00:15.6]} 49. Kd3 {[%clk 0:00:41.8]} 49...
Kc5 {[%clk 0:00:14.8]} 50. Kc3 {[%clk 0:00:40.9]} 50... Rf2 {[%clk 0:00:14.7]}
51. Rxb2 {[%clk 0:00:37.2]} 51... Rxf3+ {[%clk 0:00:14.9]} 52. Kd2 {[%clk
0:00:36]} 52... Rf2+ {[%clk 0:00:14]} 53. Kc3 {[%clk 0:00:36.3]} 53... Rxb2
{[%clk 0:00:14.1]} 54. Kxb2 {[%clk 0:00:36]} 54... Kxc4 {[%clk 0:00:14.8]} 55.
h5 {[%clk 0:00:36.3]} 55... g5 {[%clk 0:00:13.5]} 56. h6 {[%clk 0:00:33.1]}
56... Kd4 {[%clk 0:00:13.4]} 57. Kb3 {[%clk 0:00:33.4]} 57... Ke5 {[%clk
0:00:13.4]} 58. Kc4 {[%clk 0:00:33.4]} 58... Kf4 {[%clk 0:00:14]} 59. Kd5 {[%clk
0:00:34.1]} 59... Kxg4 {[%clk 0:00:14.5]} 60. Ke6 {[%clk 0:00:34.8]} 60... Kh5
{[%clk 0:00:14]} 0-1

[Event "Early-Titled-Tuesday-Blitz-September-26-2023"]
[Site "Chess.com"]
[Date "2023.09.26"]
[Round "6"]
[White "DanielTitichoca"]
[Black "Kirill_Klukin"]
[Result "0-1"]
[WhiteElo "2558"]
[BlackElo "2717"]
[TimeControl "180+1"]
[EndTime "9:09:28 PDT"]
[Termination "Kirill_Klukin won by resignation"]

1. e4 {[%clk 0:03:00.9]} 1... c5 {[%clk 0:02:55.3]} 2. Nf3 {[%clk 0:03:01.2]}
2... Nc6 {[%clk 0:02:52.8]} 3. Nc3 {[%clk 0:03:01.9]} 3... g6 {[%clk 0:02:52.6]}
4. d4 {[%clk 0:03:02]} 4... cxd4 {[%clk 0:02:53.2]} 5. Nxd4 {[%clk 0:03:02.9]}
5... Bg7 {[%clk 0:02:53.9]} 6. Be3 {[%clk 0:03:03.5]} 6... Nf6 {[%clk
0:02:54.1]} 7. Bc4 {[%clk 0:03:03.6]} 7... O-O {[%clk 0:02:54.9]} 8. Bb3 {[%clk
0:03:03.7]} 8... Re8 {[%clk 0:02:55.2]} 9. O-O {[%clk 0:03:01.6]} 9... d6 {[%clk
0:02:49.4]} 10. h3 {[%clk 0:02:58.8]} 10... Na5 {[%clk 0:02:46.6]} 11. Qe2
{[%clk 0:02:43.7]} 11... b6 {[%clk 0:02:44.8]} 12. Bd5 {[%clk 0:02:37]} 12...
Nxd5 {[%clk 0:02:22.1]} 13. exd5 {[%clk 0:02:36.5]} 13... Bb7 {[%clk 0:01:53.8]}
14. b4 {[%clk 0:02:24.4]} 14... Rc8 {[%clk 0:01:53.5]} 15. Ncb5 {[%clk
0:02:24.6]} 15... Nc4 {[%clk 0:01:45.5]} 16. Nxa7 {[%clk 0:02:23.6]} 16... Nxe3
{[%clk 0:01:44.2]} 17. Qxe3 {[%clk 0:02:12.7]} 17... Bxd4 {[%clk 0:01:00]} 18.
Qxd4 {[%clk 0:02:11.8]} 18... Rxc2 {[%clk 0:01:00.1]} 19. Rfc1 {[%clk
0:02:07.1]} 19... e5 {[%clk 0:00:28]} 20. Qd3 {[%clk 0:01:26.5]} 20... Rxc1+
{[%clk 0:00:25]} 21. Rxc1 {[%clk 0:01:15.1]} 21... Qa8 {[%clk 0:00:24.9]} 22.
Nb5 {[%clk 0:01:07.9]} 22... Rd8 {[%clk 0:00:17.7]} 23. Nc7 {[%clk 0:00:48.6]}
23... Qxa2 {[%clk 0:00:16.4]} 24. Qb5 {[%clk 0:00:49.3]} 24... Qb2 {[%clk
0:00:11.1]} 25. Rf1 {[%clk 0:00:43.5]} 25... Qd4 {[%clk 0:00:08]} 26. Rc1 {[%clk
0:00:19.7]} 26... h5 {[%clk 0:00:07]} 27. Kh2 {[%clk 0:00:18.2]} 27... h4 {[%clk
0:00:07.1]} 28. Kh1 {[%clk 0:00:18.1]} 28... Qf4 {[%clk 0:00:06]} 29. Rc2 {[%clk
0:00:15.5]} 29... Qe4 {[%clk 0:00:06.3]} 30. Qc4 {[%clk 0:00:15]} 30... Qxc4
{[%clk 0:00:04.7]} 31. Rxc4 {[%clk 0:00:15.6]} 31... Rc8 {[%clk 0:00:05.6]} 32.
Rc3 {[%clk 0:00:10.3]} 32... Kh7 {[%clk 0:00:02.1]} 33. Kg1 {[%clk 0:00:10.1]}
33... g5 {[%clk 0:00:02.4]} 34. Kf1 {[%clk 0:00:10]} 34... Kg6 {[%clk
0:00:03.1]} 35. Ke2 {[%clk 0:00:10.1]} 35... Ba6+ {[%clk 0:00:02.8]} 36. Ke3
{[%clk 0:00:09.6]} 36... Bb7 {[%clk 0:00:02.9]} 37. g4 {[%clk 0:00:09.1]} 37...
f5 {[%clk 0:00:02.7]} 38. f3 {[%clk 0:00:09]} 38... fxg4 {[%clk 0:00:02.8]} 39.
fxg4 {[%clk 0:00:09.2]} 39... Kf6 {[%clk 0:00:02.6]} 40. Ke4 {[%clk 0:00:07.7]}
40... Ke7 {[%clk 0:00:03]} 41. Nb5 {[%clk 0:00:06.7]} 41... Rxc3 {[%clk
0:00:03.2]} 42. Nxc3 {[%clk 0:00:07.6]} 42... Kf6 {[%clk 0:00:02.4]} 43. Ke3
{[%clk 0:00:06.5]} 43... Ke7 {[%clk 0:00:02.4]} 44. Ke4 {[%clk 0:00:06.9]} 44...
Ba6 {[%clk 0:00:02.7]} 45. Kf5 {[%clk 0:00:06]} 45... Bf1 {[%clk 0:00:02.6]} 46.
Kxg5 {[%clk 0:00:04.3]} 46... Bxh3 {[%clk 0:00:03.2]} 47. Kxh4 {[%clk 0:00:05]}
47... Bg2 {[%clk 0:00:04]} 48. Kg5 {[%clk 0:00:04.9]} 48... Kf7 {[%clk
0:00:03.7]} 49. Kf5 {[%clk 0:00:05]} 49... Bh1 {[%clk 0:00:03.1]} 50. g5 {[%clk
0:00:05.4]} 50... Bf3 {[%clk 0:00:03.3]} 51. g6+ {[%clk 0:00:05]} 51... Ke7
{[%clk 0:00:04]} 52. Nb5 {[%clk 0:00:05.2]} 52... Bxd5 {[%clk 0:00:03.1]} 53.
Nc3 {[%clk 0:00:04.9]} 53... Bc4 {[%clk 0:00:03]} 54. Ne4 {[%clk 0:00:05]} 54...
Bd3 {[%clk 0:00:03.5]} 55. b5 {[%clk 0:00:04.1]} 55... d5 {[%clk 0:00:03.2]} 56.
Kxe5 {[%clk 0:00:04.7]} 56... dxe4 {[%clk 0:00:02.6]} 57. Kd4 {[%clk 0:00:04]}
57... Kf6 {[%clk 0:00:02.5]} 58. g7 {[%clk 0:00:03.2]} 58... Kxg7 {[%clk
0:00:03]} 59. Ke3 {[%clk 0:00:04.1]} 59... Kf6 {[%clk 0:00:03.5]} 60. Kd4 {[%clk
0:00:05]} 60... Ke6 {[%clk 0:00:04.3]} 61. Ke3 {[%clk 0:00:05.9]} 0-1

[Event "Early-Titled-Tuesday-Blitz-September-26-2023"]
[Site "Chess.com"]
[Date "2023.09.26"]
[Round "6"]
[White "cukin84"]
[Black "Manukyan_Artak"]
[Result "0-1"]
[WhiteElo "2215"]
[BlackElo "2412"]
[TimeControl "180+1"]
[EndTime "9:09:34 PDT"]
[Termination "Manukyan_Artak won by resignation"]

1. e4 {[%clk 0:03:00.9]} 1... c6 {[%clk 0:02:59]} 2. d4 {[%clk 0:03:00]} 2... d5
{[%clk 0:02:59.3]} 3. exd5 {[%clk 0:02:59.2]} 3... cxd5 {[%clk 0:02:59.6]} 4.
Bd3 {[%clk 0:02:58.6]} 4... Nc6 {[%clk 0:02:59.9]} 5. c3 {[%clk 0:02:58.2]} 5...
e5 {[%clk 0:03:00.4]} 6. dxe5 {[%clk 0:02:57.8]} 6... Nxe5 {[%clk 0:03:01.3]} 7.
Bc2 {[%clk 0:02:58]} 7... Bg4 {[%clk 0:02:54.2]} 8. Qd4 {[%clk 0:02:53.8]} 8...
Qe7 {[%clk 0:02:45.7]} 9. Be3 {[%clk 0:02:50.4]} 9... Nf6 {[%clk 0:02:21.1]} 10.
Ba4+ {[%clk 0:02:48.5]} 10... Nc6 {[%clk 0:02:15.7]} 11. Nd2 {[%clk 0:02:44.3]}
11... Bd7 {[%clk 0:02:06.7]} 12. Bxc6 {[%clk 0:02:43]} 12... bxc6 {[%clk
0:02:07.2]} 13. Ngf3 {[%clk 0:02:41.1]} 13... c5 {[%clk 0:02:00.8]} 14. Qe5
{[%clk 0:02:40.7]} 14... Qxe5 {[%clk 0:01:55.8]} 15. Nxe5 {[%clk 0:02:40.4]}
15... Bf5 {[%clk 0:01:56.7]} 16. O-O {[%clk 0:02:36.9]} 16... Bd6 {[%clk
0:01:48.7]} 17. Ndf3 {[%clk 0:02:34.2]} 17... O-O {[%clk 0:01:39.7]} 18. Bg5
{[%clk 0:02:31.2]} 18... Ne4 {[%clk 0:01:35.5]} 19. Be3 {[%clk 0:02:24.1]} 19...
Rfe8 {[%clk 0:01:32.8]} 20. Nc6 {[%clk 0:02:21.3]} 20... a5 {[%clk 0:01:24.9]}
21. Rad1 {[%clk 0:02:07.9]} 21... Bd7 {[%clk 0:01:03.4]} 22. Nce5 {[%clk
0:01:57.3]} 22... Bxe5 {[%clk 0:00:58.5]} 23. Rxd5 {[%clk 0:01:56.7]} 23... Bd6
{[%clk 0:00:46]} 24. Ng5 {[%clk 0:01:39.8]} 24... Bc6 {[%clk 0:00:32.8]} 25.
Nxe4 {[%clk 0:01:37.4]} 25... Bf8 {[%clk 0:00:18.6]} 26. Rxc5 {[%clk 0:01:21]}
26... Bxe4 {[%clk 0:00:15.9]} 27. Rg5 {[%clk 0:01:10.1]} 27... f6 {[%clk
0:00:15.8]} 28. Rg3 {[%clk 0:01:08.8]} 28... Bd6 {[%clk 0:00:14.1]} 29. f4
{[%clk 0:01:07.1]} 29... Rab8 {[%clk 0:00:10.1]} 30. b3 {[%clk 0:01:06.9]} 30...
a4 {[%clk 0:00:09.7]} 31. Bd4 {[%clk 0:01:03.9]} 31... axb3 {[%clk 0:00:08.7]}
32. axb3 {[%clk 0:01:03.7]} 32... Kf7 {[%clk 0:00:08.5]} 33. b4 {[%clk
0:01:02.5]} 33... Red8 {[%clk 0:00:07.7]} 34. Re1 {[%clk 0:00:59.1]} 34... Bd5
{[%clk 0:00:05]} 35. Rg4 {[%clk 0:00:56.1]} 35... Re8 {[%clk 0:00:04.6]} 36. Rd1
{[%clk 0:00:54.5]} 36... Rbd8 {[%clk 0:00:04]} 37. h4 {[%clk 0:00:52.9]} 37...
h5 {[%clk 0:00:02.8]} 38. Rg3 {[%clk 0:00:45.2]} 38... Bxf4 {[%clk 0:00:03.4]}
39. Rgd3 {[%clk 0:00:42.2]} 39... Bc4 {[%clk 0:00:03.5]} 40. Rf3 {[%clk
0:00:40.2]} 40... Be2 {[%clk 0:00:03.9]} 41. Rxf4 {[%clk 0:00:35.9]} 41... Bxd1
{[%clk 0:00:04.3]} 42. b5 {[%clk 0:00:34.6]} 42... Bb3 {[%clk 0:00:04.9]} 43. b6
{[%clk 0:00:34.5]} 43... Re6 {[%clk 0:00:04.7]} 44. Kh2 {[%clk 0:00:33.7]} 44...
Rb8 {[%clk 0:00:04.9]} 45. Rf5 {[%clk 0:00:32.4]} 45... Bc4 {[%clk 0:00:04.7]}
46. Rxh5 {[%clk 0:00:31.8]} 46... Rc6 {[%clk 0:00:03.9]} 47. Rf5 {[%clk
0:00:27.8]} 47... Be6 {[%clk 0:00:04.5]} 48. Rf3 {[%clk 0:00:26.6]} 48... Rcxb6
{[%clk 0:00:04.6]} 49. Bxb6 {[%clk 0:00:25.7]} 49... Rxb6 {[%clk 0:00:05.5]} 50.
Rd3 {[%clk 0:00:25.2]} 50... Rc6 {[%clk 0:00:06.4]} 51. g3 {[%clk 0:00:23.7]}
51... Rc4 {[%clk 0:00:07.3]} 52. Kg2 {[%clk 0:00:23.3]} 52... Bf5 {[%clk
0:00:07.3]} 53. Re3 {[%clk 0:00:22.3]} 53... Kg6 {[%clk 0:00:08.2]} 54. Kf2
{[%clk 0:00:17.3]} 54... Bg4 {[%clk 0:00:08.7]} 55. Rd3 {[%clk 0:00:16.6]} 55...
f5 {[%clk 0:00:08.9]} 56. Ke3 {[%clk 0:00:16.3]} 56... Re4+ {[%clk 0:00:08.8]}
57. Kd2 {[%clk 0:00:15.8]} 57... Re2+ {[%clk 0:00:09.7]} 58. Kc1 {[%clk
0:00:16.1]} 58... Rg2 {[%clk 0:00:09.9]} 59. c4 {[%clk 0:00:15.1]} 59... Kf6
{[%clk 0:00:10.2]} 60. c5 {[%clk 0:00:15.2]} 60... Rg1+ {[%clk 0:00:08.7]} 61.
Kd2 {[%clk 0:00:14.3]} 61... Rd1+ {[%clk 0:00:08.2]} 62. Kc3 {[%clk 0:00:14.4]}
62... Rxd3+ {[%clk 0:00:09.1]} 63. Kxd3 {[%clk 0:00:14.8]} 63... Ke5 {[%clk
0:00:10]} 64. Ke3 {[%clk 0:00:13.6]} 64... g6 {[%clk 0:00:09.9]} 65. c6 {[%clk
0:00:13.1]} 65... Kd6 {[%clk 0:00:10.2]} 66. Kf4 {[%clk 0:00:13.7]} 66... Bh5
{[%clk 0:00:09.9]} 67. Kg5 {[%clk 0:00:13.9]} 67... Kxc6 {[%clk 0:00:10.3]} 0-1

[Event "Early-Titled-Tuesday-Blitz-September-26-2023"]
[Site "Chess.com"]
[Date "2023.09.26"]
[Round "6"]
[White "Katuducha"]
[Black "emeli_chess"]
[Result "0-1"]
[WhiteElo "2190"]
[BlackElo "2350"]
[TimeControl "180+1"]
[EndTime "9:09:34 PDT"]
[Termination "emeli_chess won by resignation"]

1. e4 {[%clk 0:02:52.1]} 1... c5 {[%clk 0:02:55]} 2. Nf3 {[%clk 0:02:51.1]} 2...
d6 {[%clk 0:02:54.9]} 3. d4 {[%clk 0:02:49.6]} 3... cxd4 {[%clk 0:02:54.6]} 4.
Nxd4 {[%clk 0:02:49.1]} 4... Nf6 {[%clk 0:02:54.6]} 5. Nc3 {[%clk 0:02:46.3]}
5... a6 {[%clk 0:02:54.5]} 6. Bg5 {[%clk 0:02:44.4]} 6... e6 {[%clk 0:02:52.3]}
7. f4 {[%clk 0:02:43.2]} 7... Nbd7 {[%clk 0:02:52.2]} 8. Qf3 {[%clk 0:02:41.6]}
8... Qc7 {[%clk 0:02:51.6]} 9. O-O-O {[%clk 0:02:40.3]} 9... b5 {[%clk
0:02:51.7]} 10. e5 {[%clk 0:02:37.9]} 10... Bb7 {[%clk 0:02:51.2]} 11. Qh3
{[%clk 0:02:37.8]} 11... dxe5 {[%clk 0:02:50.5]} 12. Nxe6 {[%clk 0:02:36.2]}
12... fxe6 {[%clk 0:02:50.6]} 13. Qxe6+ {[%clk 0:02:35.2]} 13... Be7 {[%clk
0:02:50.9]} 14. Bxb5 {[%clk 0:02:35.5]} 14... axb5 {[%clk 0:02:50.1]} 15. Nxb5
{[%clk 0:02:35.1]} 15... Qb6 {[%clk 0:02:30.4]} 16. Nd6+ {[%clk 0:02:30.8]}
16... Kd8 {[%clk 0:02:24.2]} 17. fxe5 {[%clk 0:02:30.2]} 17... Kc7 {[%clk
0:01:21.9]} 18. Qxe7 {[%clk 0:02:15.3]} 18... Rxa2 {[%clk 0:01:08.2]} 19. Nc4
{[%clk 0:02:14.1]} 19... Ra1+ {[%clk 0:00:57.8]} 20. Kd2 {[%clk 0:02:13.5]}
20... Qd4+ {[%clk 0:00:41.8]} 21. Ke2 {[%clk 0:02:05.9]} 21... Qxc4+ {[%clk
0:00:42]} 22. Ke3 {[%clk 0:02:00.4]} 22... Nd5+ {[%clk 0:00:32.3]} 23. Rxd5
{[%clk 0:01:58]} 23... Qxd5 {[%clk 0:00:32.1]} 24. Rxa1 {[%clk 0:01:56.3]} 24...
Qe4+ {[%clk 0:00:31.4]} 25. Kd2 {[%clk 0:01:55.2]} 25... Qxg2+ {[%clk
0:00:31.1]} 26. Kc3 {[%clk 0:01:54.2]} 26... Qf3+ {[%clk 0:00:27.1]} 27. Kb4
{[%clk 0:01:51.8]} 27... Qe4+ {[%clk 0:00:22.1]} 28. c4 {[%clk 0:01:50.8]} 28...
Qxe5 {[%clk 0:00:21.5]} 29. Qxe5+ {[%clk 0:01:44.2]} 29... Nxe5 {[%clk
0:00:21.3]} 30. Bf4 {[%clk 0:01:43.6]} 30... Re8 {[%clk 0:00:21.4]} 31. Re1
{[%clk 0:01:43.2]} 31... Kd6 {[%clk 0:00:21.4]} 32. c5+ {[%clk 0:01:42.6]} 32...
Kd5 {[%clk 0:00:21.8]} 33. Rd1+ {[%clk 0:01:40.8]} 33... Ke4 {[%clk 0:00:20.4]}
34. Bxe5 {[%clk 0:01:36.1]} 34... Rxe5 {[%clk 0:00:19.8]} 35. Rd7 {[%clk
0:01:34.9]} 35... Bd5 {[%clk 0:00:19.6]} 36. Rxg7 {[%clk 0:01:33.4]} 36... Rh5
{[%clk 0:00:19.8]} 37. Rg2 {[%clk 0:01:28.1]} 37... Kf3 {[%clk 0:00:14]} 38. Rc2
{[%clk 0:01:27.1]} 38... Be4 {[%clk 0:00:13.7]} 39. Rc3+ {[%clk 0:01:25.6]}
39... Kf4 {[%clk 0:00:12]} 40. c6 {[%clk 0:01:25]} 40... Bxc6 {[%clk 0:00:11.3]}
41. Rxc6 {[%clk 0:01:24.2]} 41... Rxh2 {[%clk 0:00:11.5]} 42. b3 {[%clk
0:01:23.9]} 42... h5 {[%clk 0:00:11.2]} 43. Rh6 {[%clk 0:01:22.6]} 43... h4
{[%clk 0:00:11.4]} 44. Kc5 {[%clk 0:01:21.9]} 44... h3 {[%clk 0:00:10.7]} 45. b4
{[%clk 0:01:21.7]} 45... Rc2+ {[%clk 0:00:10.8]} 46. Kb6 {[%clk 0:01:21.5]}
46... h2 {[%clk 0:00:11.1]} 47. b5 {[%clk 0:01:21.4]} 47... Kg3 {[%clk
0:00:11.1]} 48. Kb7 {[%clk 0:01:21.3]} 48... Rc4 {[%clk 0:00:11.3]} 49. b6
{[%clk 0:01:21.5]} 49... Rh4 {[%clk 0:00:11.1]} 50. Rg6+ {[%clk 0:01:20.1]}
50... Kf2 {[%clk 0:00:09.8]} 51. Rf6+ {[%clk 0:01:19.4]} 51... Ke2 {[%clk
0:00:10]} 52. Re6+ {[%clk 0:01:18.9]} 52... Kd2 {[%clk 0:00:10.3]} 53. Rd6+
{[%clk 0:01:19]} 53... Kc2 {[%clk 0:00:10.5]} 54. Rc6+ {[%clk 0:01:19.2]} 54...
Kb2 {[%clk 0:00:10.7]} 55. Kc7 {[%clk 0:01:18.7]} 55... h1=Q {[%clk 0:00:10.3]}
56. b7 {[%clk 0:01:19]} 56... Rh7+ {[%clk 0:00:10.2]} 57. Kb6 {[%clk 0:01:18.7]}
57... Rh6 {[%clk 0:00:06.7]} 58. Rxh6 {[%clk 0:01:12.5]} 58... Qxh6+ {[%clk
0:00:06.5]} 59. Ka7 {[%clk 0:01:12.9]} 59... Qe3+ {[%clk 0:00:05.8]} 60. Ka8
{[%clk 0:01:12.4]} 60... Qe4 {[%clk 0:00:05.4]} 61. Ka7 {[%clk 0:01:12.5]} 61...
Qd4+ {[%clk 0:00:05.4]} 62. Ka8 {[%clk 0:01:12.1]} 62... Qd5 {[%clk 0:00:05.5]}
63. Ka7 {[%clk 0:01:12.3]} 63... Qc5+ {[%clk 0:00:05.7]} 64. Ka8 {[%clk
0:01:12.6]} 64... Qa5+ {[%clk 0:00:05.7]} 65. Kb8 {[%clk 0:01:12.3]} 65... Kc3
{[%clk 0:00:05.7]} 66. Kc8 {[%clk 0:01:11.6]} 66... Qc5+ {[%clk 0:00:05.9]} 67.
Kd7 {[%clk 0:01:11.3]} 67... Qd5+ {[%clk 0:00:05.7]} 68. Kc7 {[%clk 0:01:11.1]}
68... Qc5+ {[%clk 0:00:06]} 69. Kd7 {[%clk 0:01:11.2]} 69... Qb6 {[%clk
0:00:06.1]} 70. Kc8 {[%clk 0:01:10.3]} 70... Qc6+ {[%clk 0:00:06.3]} 71. Kb8
{[%clk 0:01:09.7]} 71... Kc4 {[%clk 0:00:06.5]} 72. Ka7 {[%clk 0:01:09.8]} 72...
Qa4+ {[%clk 0:00:06.4]} 73. Kb6 {[%clk 0:01:09.5]} 73... Qb5+ {[%clk 0:00:06.7]}
74. Kc7 {[%clk 0:01:09.5]} 74... Qc5+ {[%clk 0:00:06.5]} 75. Kd7 {[%clk
0:01:07.4]} 75... Qb6 {[%clk 0:00:06.5]} 76. Kc8 {[%clk 0:01:07.3]} 76... Qc6+
{[%clk 0:00:06.9]} 77. Kb8 {[%clk 0:01:07.3]} 77... Kb5 {[%clk 0:00:07.1]} 78.
Ka7 {[%clk 0:01:07.4]} 78... Qa6+ {[%clk 0:00:06.3]} 79. Kb8 {[%clk 0:01:07.4]}
79... Kc6 {[%clk 0:00:06.2]} 80. Kc8 {[%clk 0:01:06.7]} 80... Qxb7+ {[%clk
0:00:06.4]} 0-1

[Event "Early-Titled-Tuesday-Blitz-September-26-2023"]
[Site "Chess.com"]
[Date "2023.09.26"]
[Round "6"]
[White "a-z30"]
[Black "Jagerrmeisterr"]
[Result "0-1"]
[WhiteElo "2524"]
[BlackElo "2691"]
[TimeControl "180+1"]
[EndTime "9:09:35 PDT"]
[Termination "Jagerrmeisterr won on time"]

1. d3 {[%clk 0:03:00.9]} 1... d5 {[%clk 0:02:59.4]} 2. Nf3 {[%clk 0:03:01.6]}
2... c5 {[%clk 0:02:58]} 3. g3 {[%clk 0:03:02.3]} 3... Nc6 {[%clk 0:02:58.3]} 4.
Bg2 {[%clk 0:03:03]} 4... e5 {[%clk 0:02:57.3]} 5. O-O {[%clk 0:03:03.7]} 5...
Nf6 {[%clk 0:02:57.6]} 6. c4 {[%clk 0:03:04.3]} 6... Be7 {[%clk 0:02:53.1]} 7.
Bg5 {[%clk 0:03:02.9]} 7... d4 {[%clk 0:02:40.8]} 8. a3 {[%clk 0:02:55.3]} 8...
Qc7 {[%clk 0:02:31.5]} 9. e3 {[%clk 0:02:29.6]} 9... O-O {[%clk 0:02:12.7]} 10.
exd4 {[%clk 0:02:28.3]} 10... exd4 {[%clk 0:02:12.3]} 11. Nbd2 {[%clk
0:02:18.7]} 11... Bg4 {[%clk 0:02:04.1]} 12. Re1 {[%clk 0:02:10.2]} 12... Rae8
{[%clk 0:01:55.2]} 13. Bxf6 {[%clk 0:02:01.8]} 13... Bxf6 {[%clk 0:01:52.9]} 14.
Ne4 {[%clk 0:02:01.9]} 14... Be7 {[%clk 0:01:52.9]} 15. Qa4 {[%clk 0:01:55]}
15... Bd7 {[%clk 0:01:42.8]} 16. Qc2 {[%clk 0:01:53]} 16... h6 {[%clk
0:01:38.5]} 17. Rab1 {[%clk 0:01:46.9]} 17... a5 {[%clk 0:01:30.5]} 18. Re2
{[%clk 0:01:15.6]} 18... Nd8 {[%clk 0:00:46.7]} 19. Rbe1 {[%clk 0:01:12.3]}
19... Ne6 {[%clk 0:00:46.5]} 20. Ned2 {[%clk 0:01:01.3]} 20... Bc6 {[%clk
0:00:46.4]} 21. Bh3 {[%clk 0:00:32.2]} 21... Ng5 {[%clk 0:00:46]} 22. Nxg5
{[%clk 0:00:26.8]} 22... Bxg5 {[%clk 0:00:46.1]} 23. Rxe8 {[%clk 0:00:22.1]}
23... Rxe8 {[%clk 0:00:47]} 24. Rxe8+ {[%clk 0:00:21.8]} 24... Bxe8 {[%clk
0:00:47.9]} 25. Ne4 {[%clk 0:00:21]} 25... Be7 {[%clk 0:00:47.9]} 26. Bg2 {[%clk
0:00:19.5]} 26... g6 {[%clk 0:00:48]} 27. Qe2 {[%clk 0:00:12.1]} 27... Kg7
{[%clk 0:00:46.6]} 28. Nd2 {[%clk 0:00:11.9]} 28... a4 {[%clk 0:00:42.9]} 29. h4
{[%clk 0:00:11.2]} 29... b6 {[%clk 0:00:39.8]} 30. Bd5 {[%clk 0:00:10.5]} 30...
Qd6 {[%clk 0:00:30.1]} 31. Nf3 {[%clk 0:00:10.4]} 31... Qf6 {[%clk 0:00:26.4]}
32. Qe4 {[%clk 0:00:08.8]} 32... Bd7 {[%clk 0:00:26.2]} 33. Qe5 {[%clk
0:00:05.4]} 33... Bd6 {[%clk 0:00:25.1]} 34. Qxf6+ {[%clk 0:00:04.7]} 34... Kxf6
{[%clk 0:00:26]} 35. Nd2 {[%clk 0:00:05.2]} 35... Ke7 {[%clk 0:00:23.7]} 36. Ne4
{[%clk 0:00:06.1]} 36... Bc7 {[%clk 0:00:24.3]} 37. Nd2 {[%clk 0:00:06]} 37...
f5 {[%clk 0:00:24.7]} 38. Nf3 {[%clk 0:00:05.7]} 38... Kf6 {[%clk 0:00:24.7]}
39. Nd2 {[%clk 0:00:05.7]} 39... g5 {[%clk 0:00:24.8]} 40. hxg5+ {[%clk
0:00:03]} 40... hxg5 {[%clk 0:00:25.7]} 41. Kg2 {[%clk 0:00:03.6]} 41... Be8
{[%clk 0:00:21.9]} 42. f3 {[%clk 0:00:04]} 42... Bh5 {[%clk 0:00:20.5]} 43. Bc6
{[%clk 0:00:02.9]} 43... Ke5 {[%clk 0:00:19.6]} 44. Bxa4 {[%clk 0:00:03]} 44...
Bg6 {[%clk 0:00:19.6]} 45. Bc6 {[%clk 0:00:02.8]} 45... Kd6 {[%clk 0:00:19.8]}
46. Bb7 {[%clk 0:00:02.4]} 46... Bd8 {[%clk 0:00:19.6]} 47. Ba8 {[%clk
0:00:02.7]} 47... Be7 {[%clk 0:00:19.5]} 48. Bb7 {[%clk 0:00:03.1]} 48... Ke5
{[%clk 0:00:19.6]} 49. Ba8 {[%clk 0:00:02.4]} 49... Bd6 {[%clk 0:00:19.7]} 50.
Bd5 {[%clk 0:00:02.5]} 50... Bf8 {[%clk 0:00:19.4]} 51. Bc6 {[%clk 0:00:02.8]}
51... Kd6 {[%clk 0:00:19.7]} 52. Bd5 {[%clk 0:00:03.2]} 52... Bh6 {[%clk
0:00:18.8]} 53. b4 {[%clk 0:00:02.9]} 53... cxb4 {[%clk 0:00:17.8]} 54. axb4
{[%clk 0:00:02.8]} 54... Ke5 {[%clk 0:00:18.5]} 55. Bc6 {[%clk 0:00:02.6]} 55...
Bf8 {[%clk 0:00:18.8]} 56. Nf1 {[%clk 0:00:02.9]} 56... Bxb4 {[%clk 0:00:18.9]}
57. Bd5 {[%clk 0:00:03.8]} 57... f4 {[%clk 0:00:18.8]} 58. g4 {[%clk 0:00:03.1]}
58... Bxd3 {[%clk 0:00:18.9]} 59. Nh2 {[%clk 0:00:02.7]} 59... Be2 {[%clk
0:00:18.6]} 60. Be4 {[%clk 0:00:02.2]} 60... d3 {[%clk 0:00:18.9]} 61. Nf1
{[%clk 0:00:03.1]} 61... d2 {[%clk 0:00:18.6]} 62. Nxd2 {[%clk 0:00:04]} 62...
Bxd2 {[%clk 0:00:19.3]} 63. Bd5 {[%clk 0:00:04.3]} 63... Kd4 {[%clk 0:00:19.2]}
64. Bg8 {[%clk 0:00:04.9]} 64... Bxc4 {[%clk 0:00:19.6]} 0-1